bitfinex/quotes_ETHUSD_20250913
["timestamp","ask_amount","ask_price","bid_price","bid_amount"]
[1757793921153,0.002,4648.8,4648.7,10.8212973]
[1757793921354,0.002,4648.8,4648.7,9.47390901]
[1757793921553,0.002,4648.8,4648.7,9.01370901]
[1757793921881,1.1851,4648.8,4648.7,3.19998601]
[1757793922448,0.2952,4648.8,4648.7,3.19998601]
[1757793923074,0.2952,4648.8,4648.7,3.0]
[1757793923276,2.87639275,4648.8,4648.7,3.0]
[1757793923471,0.002,4648.8,4648.7,3.0]
[1757793923788,0.2952,4648.8,4648.5,0.76817629]
[1757793924085,2.15114349,4648.7,4648.5,0.76817629]
[1757793924251,0.002,4648.8,4648.5,0.76817629]
[1757793924458,2.15309779,4648.8,4648.6,0.02151185]
[1757793924984,0.002,4648.8,4648.7,1.06947629]
[1757793925188,0.002,4648.8,4648.7,1.99897629]
[1757793925571,0.002,4648.8,4648.7,1.53877629]
[1757793925781,0.002,4648.8,4648.7,0.76817629]
[1757793926158,0.002,4648.8,4648.7,1.35887226]
[1757793927094,0.002,4649.3,4648.8,0.792]
[1757793927259,0.002,4649.3,4649.2,2.15090768]
[1757793927460,0.002,4649.3,4649.2,11.11202632]
[1757793927661,0.002,4649.3,4649.2,45.1935692]
[1757793928194,0.08,4650.8,4650.7,2.15021394]
[1757793928391,0.20044829,4654.3,4652.7,2.94128965]
[1757793928604,0.4598,4654.5,4652.7,36.65205393]
[1757793928809,0.4598,4654.5,4652.7,10.2827553]
[1757793928810,0.4301,4653.7,4652.7,10.2827553]
[1757793928961,0.4598,4653.6,4652.7,9.69657553]
[1757793929165,0.4598,4655.8,4652.7,6.91007553]
[1757793929480,0.8899,4654.7,4652.8,7.6955]
[1757793929657,2.14830621,4654.9,4652.8,7.6955]
[1757793929658,0.8899,4654.6,4652.8,7.6955]
[1757793929859,2.14868848,4654.1,4652.8,7.6955]
[1757793930102,2.14890681,4653.6,4652.6,0.76429923]
[1757793930312,3.822,4653.7,4652.3,0.4693]
[1757793930596,0.4598,4653.6,4652.4,0.02149428]
[1757793930799,0.4598,4653.6,4652.0,0.4602]
[1757793930800,0.8899,4653.6,4652.0,0.4602]
[1757793931004,2.14904523,4653.3,4652.1,0.02149566]
[1757793931212,0.93099,4653.5,4652.1,0.02149566]
[1757793931365,2.14906209,4653.2,4652.1,0.02149566]
[1757793931565,2.14902393,4653.3,4652.1,3.02149566]
[1757793931899,0.93099,4653.5,4652.3,3.0]
[1757793931900,2.14894644,4653.5,4652.3,3.0]
[1757793932062,2.14882781,4653.7,4652.3,3.0]
[1757793932265,4.2561,4653.8,4651.9,3.0]
[1757793932266,2.14892016,4653.5,4651.9,3.0]
[1757793932489,3.826,4653.8,4651.9,3.0]
[1757793932490,0.8899,4653.4,4651.9,3.0]
[1757793932787,2.14901252,4653.3,4651.9,3.0]
[1757793933096,2.14870543,4654.0,4652.0,0.4693]
[1757793933097,1.65,4653.2,4652.0,0.4693]
[1757793933261,3.824,4653.2,4652.1,2.6097213]
[1757793933461,3.824,4653.2,4652.1,0.4602]
[1757793933462,5.97307636,4653.2,4652.1,0.4602]
[1757793933693,5.97307636,4653.2,4652.1,3.4602]
[1757793933856,2.14910898,4653.1,4652.1,0.4602]
[1757793934193,1.19240764,4653.2,4651.8,3.0]
[1757793934383,2.14918925,4653.0,4651.8,5.14969541]
[1757793934572,2.5792048,4653.2,4652.0,2.14960552]
[1757793934892,2.14915108,4653.0,4651.8,4.15817258]
[1757793935190,0.4301,4652.9,4651.8,1.15817258]
[1757793935492,0.2932,4651.9,4651.4,3.82]
[1757793935696,2.14934031,4652.6,4651.8,0.3013]
[1757793936869,0.4301,4652.8,4651.8,0.3013]
[1757793937069,0.1072,4652.6,4651.9,0.1072]
[1757793937269,3.816,4652.5,4651.9,0.1072]
[1757793937508,5.466,4652.5,4651.9,0.1072]
[1757793937706,1.65,4652.5,4652.0,0.02149613]
[1757793937911,1.65,4652.5,4652.1,0.4602]
[1757793938097,1.65,4652.5,4652.2,0.0214952]
[1757793938602,0.2932,4652.3,4651.9,0.1072]
[1757793939903,3.812,4652.3,4652.0,0.02149613]
[1757793940112,1.65,4652.5,4652.2,0.3013]
[1757793940279,1.65,4652.5,4652.0,3.02149613]
[1757793940280,0.2932,4652.3,4652.0,0.02149613]
[1757793941328,0.7233,4652.3,4651.9,0.1072]
[1757793941816,0.2932,4652.3,4651.9,0.1072]
[1757793942027,1.65,4652.5,4652.2,0.3013]
[1757793942918,5.455,4652.5,4652.1,0.02149566]
[1757793943104,5.455,4652.5,4651.8,5.14970549]
[1757793943301,0.4598,4654.4,4652.6,3.0]
[1757793943505,0.4598,4654.4,4652.8,3.0]
[1757793943682,0.4598,4654.4,4653.4,2.14895581]
[1757793943880,0.4598,4654.4,4653.5,2.1489194]
[1757793944217,0.4598,4655.2,4653.5,0.21489194]
[1757793944513,0.4598,4655.2,4653.6,2.14882841]
[1757793944514,2.14823686,4655.0,4653.6,2.14882841]
[1757793944715,6.39028288,4655.1,4653.7,0.02148827]
[1757793944918,6.39028288,4655.1,4654.0,2.14865923]
[1757793945302,2.14824036,4655.0,4654.0,2.14865923]
[1757793945499,3.809,4654.9,4654.1,2.17011656]
[1757793945696,3.809,4654.9,4654.2,2.14859607]
[1757793945899,0.4598,4655.2,4654.3,0.0214855]
[1757793946088,0.904,4655.2,4654.3,0.0214855]
[1757793946432,3.807,4655.1,4654.3,0.0214855]
[1757793946717,3.807,4655.1,4654.1,2.14863884]
[1757793946894,1.649,4655.4,4654.2,0.02148596]
[1757793947094,3.805,4655.3,4654.3,0.9458]
[1757793947295,3.805,4655.3,4654.4,2.1484619]
[1757793947501,0.4442,4655.2,4654.2,2.1485535]
[1757793947713,4.2561,4655.3,4654.2,0.21485535]
[1757793948026,1.649,4655.4,4654.3,0.4732]
[1757793948198,0.4442,4655.9,4655.2,0.2883]
[1757793948199,3.024,4655.9,4655.2,0.2883]
[1757793948399,3.024,4655.9,4655.3,0.02148089]
[1757793948600,3.024,4655.9,4654.5,2.14843838]
[1757793948601,0.309,4655.3,4654.9,2.14825351]
[1757793948925,0.4442,4655.8,4655.0,2.3630524]
[1757793949419,3.024,4655.9,4655.1,0.02148181]
[1757793949600,3.024,4655.9,4654.9,0.4726]
[1757793949806,3.806,4656.2,4655.0,0.02148227]
[1757793950043,3.806,4656.2,4655.2,2.14811692]
[1757793950323,5.95368751,4656.2,4655.3,3.02148089]
[1757793950494,2.14772019,4656.1,4655.3,0.02148089]
[1757793950814,0.3142,4655.4,4654.4,4.2998]
[1757793951125,0.3142,4655.4,4654.7,2.1483655]
[1757793951423,0.3142,4655.4,4654.5,3.0]
[1757793951424,3.803,4656.0,4654.9,2.14823812]
[1757793951591,2.14782088,4655.9,4655.0,0.2384544]
[1757793951788,2.14782088,4655.9,4654.2,3.801]
[1757793951789,0.3142,4655.1,4654.2,3.801]
[1757793952019,0.3142,4655.1,4654.3,3.0]
[1757793952221,0.3142,4655.1,4654.3,5.14854934]
[1757793952424,0.3142,4655.1,4654.3,3.0]
[1757793952750,4.2766,4656.0,4654.7,2.14835096]
[1757793952952,2.14785982,4655.8,4655.0,0.1072]
[1757793953244,2.59762841,4655.9,4655.0,0.1072]
[1757793953652,0.4498,4655.9,4655.0,0.1072]
[1757793953820,2.14786618,4655.8,4655.0,0.1072]
[1757793954012,2.59764073,4655.9,4655.0,0.1072]
[1757793954214,0.4498,4655.9,4655.0,0.1072]
[1757793955034,3.8,4655.8,4655.1,0.02148181]
[1757793955225,3.8,4655.8,4655.4,0.1072]
[1757793955425,0.3142,4655.5,4655.4,0.1072]
[1757793955646,3.9022,4656.0,4655.4,0.1072]
[1757793955847,0.3142,4655.5,4655.4,0.1072]
[1757793956426,0.3142,4655.5,4654.4,3.4958]
[1757793956753,1.3448,4655.5,4654.8,0.1072]
[1757793956947,2.14810388,4655.3,4654.8,0.1072]
[1757793957360,2.59790388,4655.3,4654.8,0.1072]
[1757793958171,0.4498,4655.3,4654.8,0.1072]
[1757793958333,0.3142,4654.9,4654.8,0.1072]
[1757793958529,0.3142,4654.9,4654.1,0.4377]
[1757793958839,0.3142,4654.9,4654.5,0.1072]
[1757793959346,2.46248239,4654.9,4654.5,0.1072]
[1757793959518,1.648,4656.3,4654.8,0.2904]
[1757793959719,4.7124,4656.2,4654.8,0.2904]
[1757793959920,2.14787332,4655.8,4654.8,2.43868259]
[1757793960240,0.3142,4654.9,4654.0,0.4958]
[1757793960446,0.3142,4654.9,4654.2,0.25815]
[1757793960661,0.3142,4654.9,4654.3,2.14854516]
[1757793960855,0.3142,4654.9,4654.5,2.14844104]
[1757793961049,0.3142,4654.9,4654.2,3.25815]
[1757793961050,0.3142,4654.9,4654.2,0.25815]
[1757793961257,0.3142,4654.9,4654.2,2.14858809]
[1757793961440,0.3142,4654.9,4654.3,2.14852976]
[1757793961759,0.3142,4654.9,4653.8,3.0]
[1757793962261,0.3142,4654.9,4654.0,3.0]
[1757793962449,0.3142,4654.9,4654.7,2.1483609]
[1757793962651,0.3142,4654.9,4654.0,3.0]
[1757793962850,0.3142,4654.9,4654.1,3.39335]
[1757793963163,0.3142,4654.9,4654.4,2.14846778]
[1757793963533,0.4498,4654.8,4654.4,2.14846778]
[1757793963858,0.4498,4654.8,4654.5,2.14845084]
[1757793964062,0.4498,4654.8,4654.6,2.14839889]
[1757793964359,0.3142,4654.7,4654.6,2.14839889]
[1757793965170,0.3142,4654.7,4654.4,2.14846247]
[1757793965370,0.4736,4656.8,4654.7,30.792]
[1757793965533,0.4498,4656.7,4654.8,33.9549832]
[1757793965860,2.14757575,4656.5,4655.0,3.0]
[1757793966062,0.9234,4656.4,4655.4,2.14802827]
[1757793966259,0.4736,4656.4,4655.0,3.39335]
[1757793966461,0.4498,4656.3,4655.0,0.39335]
[1757793966666,0.9234,4656.3,4655.0,3.0]
[1757793966973,0.4498,4656.2,4655.0,3.0]
[1757793967180,0.4498,4656.2,4655.0,3.824]
[1757793967335,0.4498,4656.2,4655.5,2.14798826]
[1757793967793,0.3142,4655.6,4655.3,2.14808195]
[1757793968086,0.3142,4655.6,4655.4,2.14799726]
[1757793968269,0.3142,4655.6,4654.5,0.4377]
[1757793968470,0.3142,4655.6,4655.1,2.14815641]
[1757793968678,0.4498,4655.5,4655.1,2.14815641]
[1757793968849,0.3142,4655.2,4654.7,3.0]
[1757793969048,0.4498,4655.5,4655.1,2.14818156]
[1757793969276,0.4498,4655.5,4654.9,3.0]
[1757793969482,0.9234,4655.9,4654.9,3.0]
[1757793969687,1.0306,4655.9,4655.3,2.14806916]
[1757793970050,5.9651806,4657.3,4655.8,0.2904]
[1757793970281,0.4498,4656.6,4655.8,0.2904]
[1757793970582,0.4498,4656.6,4656.0,2.14776355]
[1757793970981,0.3142,4656.1,4655.8,2.14781904]
[1757793971190,0.3142,4656.1,4655.9,2.14778562]
[1757793971374,0.3142,4656.1,4655.4,3.4958]
[1757793971575,0.3142,4656.1,4655.5,3.22374699]
[1757793972095,0.3142,4656.1,4655.8,2.14784775]
[1757793972388,0.3142,4656.1,4655.3,3.0]
[1757793972389,0.764,4656.1,4655.3,3.0]
[1757793972601,0.4736,4656.8,4655.4,3.02148043]
[1757793972895,2.1475738,4656.5,4655.6,2.14795085]
[1757793973058,0.4498,4656.7,4655.7,2.1478979]
[1757793973059,2.59724979,4656.7,4655.7,2.1478979]
[1757793973259,2.1475078,4656.6,4655.7,2.1478979]
[1757793973482,2.14759193,4656.4,4655.6,0.0214795]
[1757793973658,2.59725346,4656.7,4655.6,0.0214795]
[1757793973872,0.4498,4656.7,4655.7,2.147902]
[1757793974069,0.4498,4656.7,4655.6,2.1694238]
[1757793974382,2.14753907,4656.5,4655.7,2.14789728]
[1757793975075,2.59733907,4656.5,4655.7,2.14789728]
[1757793975288,2.14759026,4656.4,4655.6,2.14794674]
[1757793975492,2.14758182,4656.4,4655.5,1.03402804]
[1757793975693,2.14758182,4656.4,4655.6,2.14794986]
[1757793975896,6.41234615,4656.5,4655.7,2.14790136]
[1757793976103,6.41234615,4656.5,4655.6,2.14794045]
[1757793976304,2.14758575,4656.4,4655.6,2.14794045]
[1757793976504,0.4634,4656.4,4655.5,1.03402804]
[1757793976811,0.2947,4655.6,4655.3,5.14808126]
[1757793977010,0.28396,4655.6,4655.4,0.26348101]
[1757793977210,0.9184,4655.5,4654.6,0.76429923]
[1757793977422,0.9184,4655.5,4654.5,0.02148458]
[1757793977601,2.14804335,4655.4,4654.5,3.34281536]
[1757793977908,2.14804335,4655.4,4654.5,2.49127358]
[1757793978221,0.455,4655.3,4654.5,0.34281536]
[1757793978425,2.60310144,4655.3,4654.3,2.1485508]
[1757793978591,2.60310144,4655.3,4654.3,5.1485508]
[1757793978913,0.9184,4655.2,4654.1,2.14860665]
[1757793979209,2.14822989,4655.0,4654.1,2.14860665]
[1757793979410,3.06655027,4655.2,4654.2,0.68566059]
[1757793979611,2.1483153,4654.9,4653.9,3.85670809]
[1757793979779,2.14833165,4654.8,4653.9,3.85670809]
[1757793979980,0.1072,4654.9,4654.1,0.1072]
[1757793980484,2.25550414,4654.9,4654.1,0.1072]
[1757793980817,2.14836616,4654.7,4654.1,0.1072]
[1757793981011,2.71050477,4654.9,4654.1,0.1072]
[1757793981403,2.14832231,4654.8,4654.1,0.1072]
[1757793981925,2.14842615,4654.6,4654.1,0.1072]
[1757793982102,0.2947,4654.2,4653.7,0.76429923]
[1757793982280,0.455,4654.1,4653.8,0.1072]
[1757793982480,0.2947,4653.9,4653.6,0.1072]
[1757793984792,0.7497,4653.9,4653.6,0.1072]
[1757793984993,0.2947,4653.9,4653.2,0.76429923]
[1757793985216,0.2947,4653.9,4653.2,0.69261545]
[1757793985524,2.89844077,4653.9,4653.2,0.69261545]
[1757793985696,0.7497,4653.9,4653.2,0.1072]
[1757793985896,2.14882758,4653.8,4653.2,0.1072]
[1757793986116,2.60374336,4653.9,4653.2,0.1072]
[1757793986318,0.1072,4654.0,4653.3,0.4939]
[1757793986536,0.1072,4654.0,4653.3,3.0]
[1757793986732,2.14874037,4653.9,4653.2,0.1072]
[1757793987013,2.14873546,4653.9,4653.2,0.1072]
[1757793987213,2.25589056,4654.0,4653.2,0.1072]
[1757793987413,2.25589056,4654.0,4653.2,3.1072]
[1757793987613,2.14873716,4653.9,4653.2,3.1072]
[1757793987821,2.60373716,4653.9,4653.2,0.1072]
[1757793988026,0.455,4653.9,4653.2,0.1072]
[1757793988432,2.25589483,4654.0,4653.8,0.2858]
[1757793988621,0.1072,4654.0,4653.8,0.2858]
[1757793990134,0.2947,4653.9,4653.1,3.4498]
[1757793990339,0.2947,4653.9,4653.2,5.25624517]
[1757793990535,0.2947,4653.9,4653.2,0.1072]
[1757793990736,0.2947,4653.9,4653.2,2.256233]
[1757793991052,0.2947,4653.9,4653.3,2.1490096]
[1757793991820,0.2947,4653.9,4653.3,2.14900979]
[1757793992123,0.2947,4653.9,4653.2,2.25624956]
[1757793992542,0.2947,4653.9,4653.2,0.1072]
[1757793992855,2.60378705,4653.8,4653.2,0.1072]
[1757793993350,0.455,4653.8,4653.2,0.1072]
[1757793996465,2.60379315,4653.8,4653.2,0.1072]
[1757793997371,0.455,4653.8,4653.2,0.1072]
[1757793997540,2.6037855,4653.8,4653.2,0.1072]
[1757794000658,2.14888494,4653.6,4653.2,0.1072]
[1757794000960,2.14892789,4653.5,4653.2,0.1072]
[1757794001324,2.61218014,4653.9,4653.2,0.1072]
[1757794001524,2.14881346,4653.8,4653.2,0.1072]
[1757794001730,2.14886817,4653.7,4653.2,0.1072]
[1757794002133,2.14886817,4653.7,4653.2,0.557]
[1757794002354,2.14887683,4653.6,4653.2,0.557]
[1757794002561,2.14887683,4653.6,4653.2,0.1072]
[1757794002966,2.14887683,4653.6,4653.2,0.557]
[1757794003168,2.14883652,4653.7,4653.2,0.557]
[1757794003329,2.1488771,4653.6,4653.2,0.557]
[1757794003530,2.44371252,4653.3,4653.1,0.001]
[1757794003729,0.2947,4653.3,4653.1,0.001]
[1757794003933,2.14905871,4653.2,4653.1,0.001]
[1757794004464,2.44375871,4653.2,4653.1,0.001]
[1757794005069,0.2947,4653.2,4653.1,0.001]
[1757794005637,2.44375871,4653.2,4653.1,0.001]
[1757794006871,0.2947,4653.2,4653.1,0.001]
[1757794007170,2.90375871,4653.2,4653.1,0.001]
[1757794007377,0.7547,4653.2,4653.1,0.001]
[1757794007562,0.2947,4653.2,4653.1,0.001]
[1757794008367,2.44375871,4653.2,4653.1,0.001]
[1757794008574,0.2947,4653.2,4653.1,0.001]
[1757794009888,2.25617126,4653.4,4653.1,0.001]
[1757794010259,2.2561691,4653.4,4653.1,0.2992]
[1757794011184,2.2561691,4653.4,4653.1,1.06349923]
[1757794012587,2.2561691,4653.4,4653.1,0.76529923]
[1757794013957,0.1072,4653.4,4653.1,0.76529923]
[1757794015576,2.25619287,4653.4,4653.1,0.76529923]
[1757794016198,2.1490293,4653.3,4653.1,0.76529923]
[1757794016698,2.14904786,4653.3,4653.1,0.76529923]
[1757794016894,0.1072,4653.4,4653.1,0.76529923]
[1757794017284,0.3029,4653.2,4653.1,0.76529923]
[1757794018404,2.14901252,4653.3,4653.1,0.76529923]
[1757794019301,0.1072,4653.4,4653.1,0.76529923]
[1757794019471,2.25620524,4653.4,4653.1,0.76529923]
[1757794019670,2.14901551,4653.3,4653.1,0.76529923]
[1757794019904,0.1072,4653.4,4653.3,0.2922]
[1757794020209,2.25611548,4653.6,4653.3,0.2922]
[1757794020512,0.1072,4653.6,4653.3,1.2355]
[1757794020667,0.1072,4653.6,4653.3,0.2922]
[1757794020869,0.1072,4653.6,4653.4,0.4492]
[1757794021204,2.2561194,4653.6,4653.4,0.4492]
[1757794021369,2.2561194,4653.6,4653.5,0.2922]
[1757794025401,0.1072,4653.6,4653.5,0.2922]
[1757794026289,2.25607399,4653.6,4653.5,0.2922]
[1757794026479,0.1072,4653.6,4653.5,0.2922]
[1757794026682,3.8352,4654.1,4653.5,1.2355]
[1757794026883,0.1072,4654.3,4653.7,3.0]
[1757794027094,3.728,4654.5,4654.2,0.2922]
[1757794027781,3.728,4654.5,4654.3,0.19942735]
[1757794027984,3.728,4654.5,4653.9,0.1072]
[1757794028185,3.728,4654.5,4654.0,0.19944555]
[1757794028407,2.1485508,4654.3,4654.1,0.84419157]
[1757794028590,5.87646424,4654.5,4654.2,0.19944555]
[1757794028591,5.87649165,4654.5,4654.2,0.19944555]
[1757794028792,5.87649165,4654.5,4654.1,0.64474602]
[1757794028995,2.14850705,4654.4,4654.2,0.1993939]
[1757794029201,2.14846061,4654.5,4654.1,0.64474602]
[1757794029380,5.87451056,4654.4,4654.2,0.19935115]
[1757794029580,5.87451056,4654.4,4654.1,0.64474602]
[1757794029910,2.1485508,4654.3,4654.2,0.19935122]
[1757794030097,5.87453297,4654.4,4654.2,0.19935122]
[1757794030299,3.726,4654.4,4654.2,0.2922]
[1757794030997,2.1485508,4654.3,4654.2,0.2922]
[1757794031396,2.14848381,4654.5,4654.2,0.2922]
[1757794031575,5.8735112,4654.4,4654.2,0.2922]
[1757794031777,2.1485112,4654.4,4654.2,0.2922]
[1757794032009,5.8695112,4654.4,4654.2,0.2922]
[1757794032185,2.1485508,4654.3,4654.1,0.64474602]
[1757794032712,2.1485508,4654.3,4654.2,0.2922]
[1757794033208,5.86951197,4654.4,4654.2,0.2922]
[1757794033805,2.14855534,4654.3,4654.1,0.64474602]
[1757794034010,2.14859696,4654.2,4654.1,0.64474602]
[1757794034211,3.718,4654.3,4654.1,0.8439843]
[1757794034511,3.718,4654.3,4654.1,0.64474602]
[1757794034711,3.718,4654.3,4653.9,0.1072]
[1757794035012,2.14860537,4654.2,4654.0,0.1992177]
[1757794035206,2.14860537,4654.2,4654.1,0.1992177]
[1757794035412,2.14860537,4654.2,4654.1,0.19920019]
[1757794035609,3.718,4654.3,4654.1,0.19920019]
[1757794035610,5.8665601,4654.3,4654.1,0.19920019]
[1757794035799,5.8665601,4654.3,4653.9,0.75195017]
[1757794036012,5.8665601,4654.3,4654.1,0.3127]
[1757794036379,3.718,4654.3,4653.9,0.75195017]
[1757794036579,0.1072,4654.6,4654.0,0.19918236]
[1757794036811,0.1072,4654.6,4653.9,0.87655519]
[1757794036812,2.14855148,4654.3,4654.1,0.19918236]
[1757794037124,2.14855148,4654.3,4654.2,0.19918236]
[1757794037412,6.15975148,4654.3,4654.2,0.19918236]
[1757794038782,2.44575148,4654.3,4654.2,0.19918236]
[1757794039093,6.15675148,4654.3,4654.2,0.19918236]
[1757794039802,6.15675148,4654.3,4653.9,0.75195018]
[1757794039993,6.15675148,4654.3,4654.0,0.19916084]
[1757794040195,6.15675148,4654.3,4654.1,0.19916084]
[1757794040395,6.15675148,4654.3,4654.1,0.001]
[1757794040729,2.14828429,4654.9,4654.2,1.44595033]
[1757794040916,3.709,4654.8,4654.3,0.36747955]
[1757794041107,3.709,4654.8,4654.4,0.19915033]
[1757794041303,3.709,4654.8,4654.5,0.19915033]
[1757794041504,3.709,4654.8,4654.6,0.19915033]
[1757794041704,6.01732001,4654.8,4654.7,0.19915033]
[1757794041910,7.23842001,4654.8,4654.7,0.19915033]
[1757794042329,2.14837404,4654.7,4654.3,0.4606]
[1757794042626,3.708,4654.6,4654.4,0.19902634]
[1757794042850,3.708,4654.6,4654.3,0.4606]
[1757794042851,3.708,4654.6,4654.5,0.19902634]
[1757794043609,4.0052,4654.6,4654.5,0.19902634]
[1757794044398,3.708,4654.6,4654.5,0.51172634]
[1757794044798,3.708,4654.6,4654.5,0.98622634]
[1757794045043,3.708,4654.6,4654.5,1.44582634]
[1757794045223,3.708,4654.6,4654.5,2.09047537]
[1757794045832,3.708,4654.6,4654.5,1.61597537]
[1757794046149,3.708,4654.6,4654.5,1.15637537]
[1757794046804,3.705,4654.8,4654.5,1.61597537]
[1757794047005,3.705,4654.8,4654.6,0.19902634]
[1757794047344,3.705,4654.8,4654.7,0.19902634]
[1757794047646,3.703,4654.8,4654.7,0.19902634]
[1757794049621,3.863,4654.8,4654.7,0.19902634]
[1757794049934,0.16,4654.8,4654.7,0.51442634]
[1757794050137,0.16,4654.8,4654.7,0.98782634]
[1757794050307,0.16,4654.8,4654.7,0.51442634]
[1757794051134,0.16,4654.8,4654.7,0.19902634]
[1757794053343,3.699,4655.0,4654.7,0.19902634]
[1757794053541,5.84723744,4655.0,4654.8,0.19902634]
[1757794053843,1.2243,4654.9,4654.6,0.1072]
[1757794054012,1.2243,4654.9,4654.7,0.199154]
[1757794054214,0.43,4654.8,4654.6,0.1072]
[1757794054541,0.43,4654.8,4654.7,0.19923879]
[1757794054738,0.7249,4654.8,4654.7,0.19923879]
[1757794054946,2.87322001,4654.8,4654.7,0.19923879]
[1757794055146,3.37262001,4654.8,4654.3,0.76424698]
[1757794055346,1.2243,4654.8,4654.4,0.96357579]
[1757794055513,0.7249,4654.8,4654.5,0.19932881]
[1757794055856,0.7249,4654.8,4654.6,0.19932881]
[1757794056053,0.7249,4654.8,4654.7,0.19932881]
[1757794056254,0.8849,4654.8,4654.7,0.19932881]
[1757794056724,0.4549,4654.8,4654.7,0.19932881]
[1757794057723,0.2949,4654.8,4654.7,0.19932881]
[1757794059658,3.8002,4655.0,4654.7,0.51472881]
[1757794059963,3.8002,4655.0,4654.8,0.19932881]
[1757794060112,3.8002,4655.0,4654.5,0.4734]
[1757794060113,3.8002,4655.0,4654.9,0.19932881]
[1757794060318,3.687,4655.1,4654.9,1.47282881]
[1757794060626,1.649,4655.4,4655.0,1.15742881]
[1757794060627,3.687,4655.3,4655.0,1.15742881]
[1757794060842,0.1072,4655.4,4655.2,0.3154]
[1757794061153,3.689,4655.6,4655.3,1.15750174]
[1757794061323,3.689,4655.6,4655.5,0.3154]
[1757794062050,0.002,4655.6,4655.5,0.51477174]
[1757794062250,0.002,4655.6,4655.5,1.47287174]
[1757794062639,0.002,4655.6,4655.5,0.51477174]
[1757794063616,0.2969,4655.6,4655.5,0.19937174]
[1757794063820,2.87485085,4655.6,4655.5,0.19937174]
[1757794064230,3.37425085,4655.6,4655.5,0.19937174]
[1757794064456,2.14804956,4655.4,4655.0,4.40881153]
[1757794064657,2.57804956,4655.4,4655.1,0.19928663]
[1757794064955,2.1480932,4655.3,4655.2,0.19928663]
[1757794065163,2.4429932,4655.3,4655.2,0.19928663]
[1757794065926,0.1072,4655.5,4655.2,0.50728663]
[1757794066261,3.685,4655.6,4655.3,0.19928663]
[1757794066462,3.685,4655.6,4655.4,0.19928663]
[1757794066766,3.685,4655.6,4655.5,0.19928663]
[1757794066936,5.83295085,4655.6,4655.5,0.19927495]
[1757794067337,3.39635085,4655.6,4655.5,0.19927495]
[1757794067543,2.14815799,4655.2,4654.9,0.76424698]
[1757794067742,2.14818156,4655.1,4655.0,0.19931668]
[1757794068141,3.39458156,4655.1,4655.0,0.19931668]
[1757794068551,7.07758156,4655.1,4655.0,0.19931668]
[1757794068752,8.10735046,4655.1,4655.0,0.19931668]
[1757794069066,2.14827386,4654.9,4654.4,0.1072]
[1757794069264,2.14840172,4654.7,4654.5,0.1994183]
[1757794069463,2.14827386,4654.9,4654.6,0.1994183]
[1757794069464,3.682,4654.9,4654.6,0.1994183]
[1757794069663,3.682,4654.9,4654.7,0.1994183]
[1757794069966,5.83027683,4654.9,4654.8,0.1994183]
[1757794070262,6.14057683,4654.9,4654.8,0.1994183]
[1757794070769,6.14057683,4654.9,4654.8,0.19948882]
[1757794072361,6.58497683,4654.9,4654.8,0.19948882]
[1757794074441,2.14835575,4654.8,4654.5,0.76424698]
[1757794074635,5.82536616,4654.7,4654.6,0.19951641]
[1757794074836,6.11366616,4654.7,4654.6,0.19951641]
[1757794075050,2.14858443,4654.3,4654.1,0.76524698]
[1757794075373,2.14859696,4654.2,4654.1,0.001]
[1757794075572,2.14859696,4654.2,4654.1,0.20054957]
[1757794075785,2.43689696,4654.2,4654.1,0.20054957]
[1757794075965,2.88129696,4654.2,4654.1,0.20054957]
[1757794076133,3.45069696,4654.2,4654.1,0.20054957]
[1757794076689,2.98849696,4654.2,4654.1,0.20054957]
[1757794077279,2.54409696,4654.2,4654.1,0.20054957]
[1757794077915,2.14827678,4654.9,4654.1,0.20054957]
[1757794077916,0.57837418,4656.5,4656.4,2.14758182]
[1757794078125,3.676,4658.9,4656.5,33.0]
[1757794078407,0.4444,4658.3,4657.5,0.76402698]
[1757794078554,0.4444,4658.3,4657.6,0.19895343]
[1757794078759,0.4444,4658.3,4657.0,3.0]
[1757794078760,0.9066,4658.2,4657.7,0.19895343]
[1757794079066,4.3382,4658.1,4657.8,0.19895343]
[1757794079256,0.2883,4657.9,4657.5,1.21620123]
[1757794079570,0.9066,4657.8,4657.6,0.19844356]
[1757794079763,0.9066,4657.8,4657.7,0.19844356]
[1757794080177,3.875,4658.0,4657.7,0.19844356]
[1757794080525,3.875,4658.0,4657.8,0.19844356]
[1757794080687,4.79756,4658.0,4657.4,0.57191354]
[1757794080861,4.3322,4658.2,4657.5,0.19841961]
[1757794081061,4.3322,4658.2,4657.6,0.19841961]
[1757794081291,4.3322,4658.2,4657.7,0.19841961]
[1757794081499,0.9066,4658.1,4657.3,0.57191354]
[1757794081694,0.9066,4658.1,4657.4,0.1982593]
[1757794081994,0.47766,4658.0,4657.5,0.1982593]
[1757794082198,0.47766,4658.0,4657.6,0.1982593]
[1757794082502,0.47766,4658.0,4657.7,0.19812842]
[1757794082793,0.2883,4657.8,4657.3,0.57191354]
[1757794083098,0.9066,4657.7,4657.4,0.19812849]
[1757794083274,4.3124,4657.7,4657.5,0.19812849]
[1757794083595,3.864,4657.7,4657.6,2.345157]
[1757794083769,0.4622,4658.6,4657.6,2.345157]
[1757794083770,3.863,4658.0,4657.6,0.77004203]
[1757794083979,3.863,4658.0,4657.7,0.19812849]
[1757794084317,3.863,4658.0,4657.8,0.19812849]
[1757794084518,3.863,4658.0,4657.5,0.57191354]
[1757794084715,3.863,4658.0,4657.6,0.19785435]
[1757794085018,3.863,4658.0,4657.7,0.19785435]
[1757794085222,3.863,4658.0,4657.8,0.19785435]
[1757794085409,3.863,4658.0,4657.5,2.71898282]
[1757794085410,3.863,4658.0,4657.5,2.14706928]
[1757794085611,3.863,4658.0,4657.6,0.19775823]
[1757794085810,3.863,4658.0,4657.7,0.19775823]
[1757794086009,3.863,4658.0,4657.8,0.19775823]
[1757794086205,3.863,4658.0,4657.5,5.14706339]
[1757794086408,3.863,4658.0,4657.6,0.19767669]